fUST/lending_fUST_20250109
["ID","MTS","AMOUNT","RATE_DAILY","PERIOD"]
[348153336,1736357445860,-500.0,0.00019452,3]
[348153338,1736357445869,-500.0,0.00019452,3]
[348153339,1736357445878,-500.0,0.00019452,3]
[348153340,1736357445888,-500.0,0.00019452,3]
[348153341,1736357445898,-503.64094919,0.00019452,3]
[348153343,1736357445908,-546.65630129,0.00019452,3]
[348153344,1736357445918,-500.0,0.00019452,3]
[348153346,1736357445927,-507.31521253,0.00019452,3]
[348153348,1736357445937,-500.0,0.00019452,3]
[348153350,1736357445947,-500.0,0.00019452,3]
[348153352,1736357445956,-502.52385123,0.00019452,3]
[348153354,1736357445965,-500.0,0.00019452,3]
[348153355,1736357445974,-562.07,0.00019452,3]
[348153357,1736357445983,-220.53,0.00019452,3]
[348153358,1736357445993,-502.3578938,0.00019452,3]
[348153360,1736357446002,-500.0,0.00019452,3]
[348153361,1736357446012,-501.61237042,0.00019452,3]
[348153362,1736357446023,-502.29855832,0.00019452,3]
[348153363,1736357446032,-500.0,0.00019452,3]
[348153364,1736357446042,-506.38949308,0.00019452,3]
[348153365,1736357446052,-500.0,0.00019452,3]
[348153366,1736357446061,-500.0,0.00019452,3]
[348153367,1736357446071,-580.14051021,0.00019452,3]
[348153368,1736357446081,-503.04140799,0.00019452,3]
[348153369,1736357446092,-500.0,0.00019452,3]
[348153370,1736357446102,-502.13930557,0.00019452,3]
[348153371,1736357446111,-503.16885333,0.00019452,3]
[348153373,1736357446121,-500.0,0.00019452,3]
[348153374,1736357446131,-501.63335731,0.00019452,3]
[348153375,1736357446140,-500.0,0.00019452,3]
[348153376,1736357446150,-503.01855584,0.00019452,3]
[348153378,1736357446159,-503.00402007,0.00019452,3]
[348153379,1736357446169,-506.8326675,0.00019452,3]
[348153381,1736357446178,-525.60671914,0.00019452,3]
[348153383,1736357446187,-544.32,0.00019452,3]
[348153384,1736357446196,-500.0,0.00019452,3]
[348153386,1736357446206,-500.0,0.00019452,3]
[348153387,1736357446215,-501.25080799,0.00019452,3]
[348153388,1736357446225,-502.83142871,0.00019452,3]
[348153389,1736357446235,-501.5001903,0.00019452,3]
[348153390,1736357446244,-504.47781108,0.00019452,3]
[348153391,1736357446253,-500.0,0.00019452,3]
[348153392,1736357446265,-5315.93,0.00019452,3]
[348153395,1736357446287,-500.0,0.00019452,3]
[348153396,1736357446302,-500.0,0.00019452,3]
[348153397,1736357446316,-500.0,0.00019452,3]
[348153398,1736357446328,-500.0,0.00019452,3]
[348153399,1736357446344,-500.0,0.00019452,3]
[348153401,1736357446358,-500.0,0.00019452,3]
[348153403,1736357446372,-500.0,0.00019452,3]
[348153405,1736357446386,-500.0,0.00019452,3]
[348153407,1736357446400,-500.0,0.00019452,3]
[348153408,1736357446417,-500.0,0.00019452,3]
[348153409,1736357446429,-500.0,0.00019452,3]
[348153411,1736357446444,-500.0,0.00019452,3]
[348153413,1736357446457,-503.2135459,0.00019452,3]
[348153415,1736357446471,-500.0,0.00019452,3]
[348153417,1736357446484,-501.02647632,0.00019452,3]
[348153419,1736357446497,-500.0,0.00019452,3]
[348153421,1736357446508,-443.55,0.00019452,3]
[348153423,1736357446523,-500.0,0.00019452,3]
[348153424,1736357446536,-605.23680086,0.00019452,3]
[348153426,1736357446550,-502.53714393,0.00019452,3]
[348153427,1736357446564,-501.68493322,0.00019452,3]
[348153428,1736357446577,-501.44362207,0.00019452,3]
[348153430,1736357446590,-500.0,0.00019452,3]
[348153432,1736357446603,-500.0,0.00019452,3]
[348153433,1736357446618,-500.0,0.00019452,3]
[348153434,1736357446630,-500.0,0.00019452,3]
[348153435,1736357446640,-554.08006025,0.00019452,3]
[348153436,1736357446651,-500.0,0.00019452,3]
[348153437,1736357446664,-502.7194904,0.00019452,3]
[348153438,1736357446678,-536.08,0.00019452,3]
[348153439,1736357446692,-517.53,0.00019452,3]
[348153440,1736357446703,-500.0,0.00019452,3]
[348153441,1736357446715,-500.0,0.00019452,3]
[348153442,1736357446727,-500.0,0.00019452,3]
[348153443,1736357446739,-500.0,0.00019452,3]
[348153444,1736357446750,-500.0,0.00019452,3]
[348153445,1736357446761,-500.0,0.00019452,3]
[348153446,1736357446773,-500.0,0.00019452,3]
[348153447,1736357446784,-500.0,0.00019452,3]
[348153448,1736357446795,-500.0,0.00019452,3]
[348153449,1736357446807,-500.0,0.00019452,3]
[348153450,1736357446819,-500.0,0.00019452,3]
[348153451,1736357446830,-500.0,0.00019452,3]
[348153452,1736357446841,-500.0,0.00019452,3]
[348153453,1736357446852,-500.0,0.00019452,3]
[348153454,1736357446863,-504.95546824,0.00019452,3]
[348153455,1736357446874,-500.0,0.00019452,3]
[348153456,1736357446885,-504.33567399,0.00019452,3]
[348153457,1736357446896,-500.0,0.00019452,3]
[348153458,1736357446907,-500.0,0.00019452,3]
[348153459,1736357446919,-500.0,0.00019452,3]
[348153460,1736357446930,-500.0,0.00019452,3]
[348153461,1736357446942,-500.0,0.00019452,3]
[348153462,1736357446953,-514.89674656,0.00019452,3]
[348153463,1736357446966,-500.0,0.00019452,3]
[348153464,1736357446978,-500.0,0.00019452,3]
[348153465,1736357446989,-500.0,0.00019452,3]
[348153466,1736357447001,-500.0,0.00019452,3]
[348153467,1736357447012,-695.95,0.00019452,3]
[348153468,1736357447027,-500.0,0.00019452,3]
[348153469,1736357447039,-500.0,0.00019452,3]
[348153470,1736357447050,-7284.04,0.000195,2]
[348153471,1736357447064,-511.12710912,0.00019726,3]
[348153472,1736357447075,-500.0,0.00019726,3]
[348153473,1736357447088,-500.0,0.00019726,3]
[348153474,1736357447100,-314.88,0.00019726,3]
[348153476,1736357447112,-312.6,0.00019726,3]
[348153477,1736357447125,-500.0,0.00019726,3]
[348153478,1736357447139,-500.0,0.00019726,3]
[348153479,1736357447151,-580.62,0.00019726,3]
[348153480,1736357447164,-500.0,0.00019726,3]
[348153481,1736357447177,-500.0,0.00019726,3]
[348153482,1736357447186,-500.0,0.00019726,3]
[348153483,1736357447199,-519.03633452,0.00019726,3]
[348153484,1736357447212,-500.0,0.00019726,3]
[348153485,1736357447221,-500.0,0.00019726,3]
[348153486,1736357447231,-500.0,0.00019726,3]
[348153487,1736357447334,-500.0,0.00019726,3]
[348153488,1736357447374,-218.94306561,0.00019726,3]
[348153489,1736357447385,-500.0,0.00019726,3]
[348153490,1736357447395,-500.0,0.00019726,3]
[348153491,1736357447405,-501.34895046,0.00019726,3]
[348153492,1736357447416,-500.0,0.00019726,3]
[348153493,1736357447425,-500.0,0.00019726,3]
[348153494,1736357447435,-502.41287424,0.00019726,3]
[348153495,1736357447445,-500.0,0.00019726,3]
[348153496,1736357447456,-500.0,0.00019726,3]
[348153497,1736357447466,-500.0,0.00019726,3]
[348153498,1736357447475,-500.0,0.00019726,3]
[348153499,1736357447486,-500.0,0.00019726,3]
[348153500,1736357447495,-389.10783535,0.00019726,3]
[348153501,1736357447504,-501.85107427,0.00019726,3]
[348153502,1736357447514,-500.0,0.00019726,2]
[348153503,1736357447529,-500.0,0.00019726,3]
[348153504,1736357447539,-477.96154489,0.00019726,3]
[348153505,1736357447548,-500.0,0.00019726,3]
[348153506,1736357447559,-480.52841538,0.00019726,3]
[348153507,1736357447568,-502.20027122,0.00019726,3]
[348153508,1736357447578,-502.18273555,0.00019726,3]
[348153509,1736357447588,-500.0,0.00019726,3]
[348153510,1736357447598,-500.0,0.00019726,3]
[348153511,1736357447608,-500.0,0.00019726,3]
[348153512,1736357447619,-500.0,0.00019726,3]
[348153513,1736357447628,-500.0,0.00019726,3]
[348153514,1736357447638,-1064.4,0.00019726,3]
[348153515,1736357447649,-500.0,0.00019726,3]
[348153516,1736357447659,-502.50184499,0.00019726,3]
[348153517,1736357447668,-500.0,0.00019726,3]
[348153518,1736357447678,-500.0,0.00019726,3]
[348153519,1736357447687,-500.0,0.00019726,3]
[348153520,1736357447698,-502.5073925,0.00019726,3]
[348153521,1736357447707,-500.0,0.00019726,3]
[348153522,1736357447718,-500.0,0.00019726,3]
[348153523,1736357447728,-500.0,0.00019726,3]
[348153524,1736357447738,-500.0,0.00019726,3]
[348153525,1736357447747,-500.0,0.00019726,3]
[348153526,1736357447757,-500.0,0.00019726,3]
[348153527,1736357447767,-500.0,0.00019726,3]
[348153528,1736357447779,-500.0,0.00019726,3]
[348153529,1736357447789,-440.84929279,0.00019726,3]
[348153530,1736357447798,-500.0,0.00019726,3]
[348153531,1736357447808,-500.0,0.00019726,3]
[348153532,1736357447818,-500.0,0.00019726,3]
[348153533,1736357447827,-500.0,0.00019726,3]
[348153534,1736357447837,-500.0,0.00019726,3]
[348153535,1736357447846,-500.0,0.00019726,3]
[348153536,1736357447856,-303.47131887,0.00019726,3]
[348153537,1736357447866,-500.0,0.00019726,3]
[348153538,1736357447876,-222.95744751,0.00019726,3]
[348153539,1736357447886,-500.0,0.00019726,3]
[348153540,1736357447895,-5315.93,0.00019726,3]
[348153541,1736357447905,-617.48,0.00019726,3]
[348153542,1736357447915,-500.0,0.00019726,3]
[348153543,1736357447925,-500.0,0.00019726,3]
[348153544,1736357447935,-500.0,0.00019726,3]
[348153545,1736357447945,-500.0,0.00019726,3]
[348153546,1736357447955,-500.0,0.00019726,3]
[348153547,1736357447964,-501.60118619,0.00019726,3]
[348153548,1736357447974,-508.41790914,0.00019726,3]
[348153549,1736357447983,-500.0,0.00019726,3]
[348153550,1736357447993,-500.0,0.00019726,3]
[348153551,1736357448003,-500.0,0.00019726,3]
[348153552,1736357448013,-500.0,0.00019726,3]
[348153553,1736357448027,-500.0,0.00019726,3]
[348153554,1736357448038,-500.0,0.00019726,3]
[348153555,1736357448055,-500.0,0.00019726,3]
[348153556,1736357448065,-500.0,0.00019726,3]
[348153557,1736357448075,-500.0,0.00019726,3]
[348153558,1736357448086,-500.0,0.00019726,3]
[348153559,1736357448096,-500.0,0.00019726,3]
[348153560,1736357448107,-500.0,0.00019726,3]
[348153561,1736357448118,-500.0,0.00019726,3]
[348153562,1736357448129,-500.0,0.00019726,3]
[348153563,1736357448139,-505.38692903,0.00019726,3]
[348153564,1736357448149,-500.0,0.00019726,3]
[348153565,1736357448158,-500.0,0.00019726,3]
[348153566,1736357448168,-500.0,0.00019726,3]
[348153567,1736357448178,-504.90201086,0.00019726,3]
[348153568,1736357448187,-500.0,0.00019726,3]
[348153569,1736357448197,-500.0,0.00019726,3]
[348153570,1736357448206,-500.0,0.00019726,3]
[348153571,1736357448216,-695.95,0.00019726,3]
[348153572,1736357448226,-500.0,0.00019726,3]
[348153573,1736357448236,-500.0,0.00019726,3]
[348153574,1736357448246,-3613.26,0.000198,2]
[348153575,1736357448255,-7077.62185209,0.000198,2]
[348153576,1736357448281,-1881.42814791,0.000198,2]
[348153577,1736357448291,-500.0,0.00019863,7]
[348153578,1736357448301,-916.16538931,0.00019896,2]
[348153579,1736357448310,-8850.23,0.00019999,3]
[348153580,1736357448320,-500.0,0.0002,3]
[348153581,1736357448330,-500.0,0.0002,3]
[348153582,1736357448340,-500.0,0.0002,3]
[348153583,1736357448350,-580.62,0.0002,3]
[348153584,1736357448365,-500.0,0.0002,3]
[348153585,1736357448374,-500.0,0.0002,3]
[348153586,1736357448384,-500.0,0.0002,3]
[348153587,1736357448395,-522.16,0.0002,3]
[348153588,1736357448405,-183.99075143,0.0002,3]
[348153589,1736357448415,-500.0,0.0002,3]
[348153590,1736357448425,-447.14,0.0002,3]
[348153591,1736357448435,-503.27456189,0.0002,3]
[348153592,1736357448446,-500.0,0.0002,3]
[348153593,1736357448455,-500.0,0.0002,3]
[348153594,1736357448465,-504.51873845,0.0002,3]
[348153595,1736357448475,-500.0,0.0002,3]
[348153596,1736357448486,-500.0,0.0002,2]
[348153597,1736357448496,-500.0,0.0002,3]
[348153598,1736357448505,-500.0,0.0002,3]
[348153599,1736357448515,-500.0,0.0002,3]
[348153600,1736357448529,-360.20117337,0.0002,3]
[348153601,1736357448540,-1064.4,0.0002,3]
[348153602,1736357448550,-500.0,0.0002,3]
[348153603,1736357448560,-500.0,0.0002,3]
[348153604,1736357448569,-363.6839815,0.0002,3]
[348153605,1736357448579,-500.0,0.0002,3]
[348153606,1736357448590,-511.56429899,0.0002,3]
[348153607,1736357448600,-500.0,0.0002,3]
[348153608,1736357448611,-500.0,0.0002,3]
[348153609,1736357448621,-500.0,0.0002,3]
[348153610,1736357448631,-500.0,0.0002,3]
[348153611,1736357448642,-500.0,0.0002,3]
[348153612,1736357448652,-214.61,0.0002,3]
[348153613,1736357448662,-624.28,0.0002,3]
[348153614,1736357448672,-500.0,0.0002,3]
[348153615,1736357448681,-500.0,0.0002,3]
[348153616,1736357448691,-5315.93,0.0002,3]
[348153617,1736357448701,-500.0,0.0002,3]
[348153618,1736357448711,-500.0,0.0002,3]
[348153619,1736357448720,-500.0,0.0002,3]
[348153620,1736357448731,-500.0,0.0002,3]
[348153621,1736357448742,-419.67,0.0002,3]
[348153622,1736357448752,-353.79314662,0.0002,2]
[348153623,1736357448762,-4078.99155027,0.0002,2]
[348153624,1736357448777,-5178.49243311,0.0002,2]
[348153625,1736357448787,-500.0,0.0002,3]
[348153626,1736357448797,-500.0,0.0002,3]
[348153627,1736357448808,-500.0,0.0002,3]
[348153628,1736357448818,-391.14,0.0002,3]
[348153629,1736357448828,-500.0,0.0002,3]
[348153630,1736357448838,-500.0,0.0002,3]
[348153631,1736357448848,-500.0,0.0002,3]
[348153632,1736357448858,-500.0,0.0002,3]
[348153633,1736357448869,-500.0,0.0002,3]
[348153634,1736357448879,-278.39489244,0.0002,3]
[348153635,1736357448889,-176.79,0.0002,3]
[348153636,1736357448899,-500.0,0.0002,3]
[348153637,1736357448909,-500.0,0.0002,3]
[348153638,1736357448919,-506.91872714,0.0002,3]
[348153639,1736357448929,-500.0,0.0002,3]
[348153640,1736357448938,-500.0,0.0002,3]
[348153641,1736357448950,-529.19703896,0.0002,3]
[348153642,1736357448960,-500.0,0.0002,3]
[348153643,1736357448971,-695.95,0.0002,3]
[348153644,1736357448980,-500.0,0.0002,3]
[348153645,1736357448990,-8850.23,0.00020272,3]
[348153646,1736357449001,-500.0,0.00020273,3]
[348153647,1736357449010,-500.0,0.00020273,3]
[348153648,1736357449026,-500.0,0.00020273,3]
[348153649,1736357449039,-580.62,0.00020273,3]
[348153650,1736357449049,-500.0,0.00020273,3]
[348153651,1736357449058,-500.0,0.00020273,3]
[348153652,1736357449069,-208.0,0.00020273,3]
[348153653,1736357449079,-500.0,0.00020273,3]
[348153654,1736357449089,-500.0,0.00020273,3]
[348153655,1736357449098,-500.0,0.00020273,3]
[348153656,1736357449109,-500.0,0.00020273,3]
[348153657,1736357449118,-500.0,0.00020273,3]
[348153658,1736357449128,-500.0,0.00020273,3]
[348153659,1736357449139,-1064.4,0.00020273,3]
[348153660,1736357449149,-500.0,0.00020273,3]
[348153661,1736357449159,-413.28339861,0.00020273,3]
[348153662,1736357449169,-500.0,0.00020273,3]
[348153663,1736357449180,-500.0,0.00020273,3]
[348153664,1736357449190,-548.93125901,0.00020273,3]
[348153665,1736357449200,-500.0,0.00020273,3]
[348153666,1736357449210,-222.57693907,0.00020273,3]
[348153667,1736357449223,-277.42306093,0.00020273,3]
[348153668,1736357449234,-393.79194951,0.00020273,3]
[348153669,1736357449247,-106.20805049,0.00020273,3]
[348153670,1736357449257,-4333.45213135,0.00020273,3]
[348153671,1736357449290,-982.47786865,0.00020273,3]
[348153672,1736357449301,-500.0,0.00020273,3]
[348153673,1736357449310,-500.0,0.00020273,3]
[348153674,1736357449321,-500.0,0.00020273,3]
[348153675,1736357449330,-500.0,0.00020273,3]
[348153676,1736357449340,-500.0,0.00020273,3]
[348153677,1736357449351,-500.0,0.00020273,3]
[348153678,1736357449361,-500.0,0.00020273,3]
[348153679,1736357449372,-500.0,0.00020273,3]
[348153680,1736357449382,-500.0,0.00020273,3]
[348153681,1736357449392,-500.0,0.00020273,3]
[348153682,1736357449402,-500.0,0.00020273,3]
[348153683,1736357449412,-500.0,0.00020273,3]
[348153684,1736357449422,-500.0,0.00020273,3]
[348153685,1736357449432,-500.0,0.00020273,3]
[348153686,1736357449443,-500.0,0.00020273,3]
[348153687,1736357449453,-500.0,0.00020273,3]
[348153688,1736357449463,-500.0,0.00020273,3]
[348153689,1736357449472,-695.95,0.00020273,3]
[348153690,1736357449482,-500.0,0.00020273,3]
[348153691,1736357449492,-1500.0,0.000205,2]
[348153692,1736357449502,-500.0,0.00020547,3]
[348153693,1736357449511,-500.0,0.00020547,3]
[348153694,1736357449523,-194.9,0.00020547,3]
[348153695,1736357449533,-580.62,0.00020547,3]
[348153696,1736357449542,-500.0,0.00020547,3]
[348153697,1736357449551,-217.58,0.00020547,3]
[348153698,1736357449560,-500.0,0.00020547,3]
[348153699,1736357449570,-500.0,0.00020547,3]
[348153700,1736357449579,-191.55,0.00020547,3]
[348153701,1736357449588,-500.0,0.00020547,3]
[348153702,1736357449598,-500.0,0.00020547,3]
[348153703,1736357449608,-500.0,0.00020547,3]
[348153704,1736357449700,-1064.4,0.00020547,3]
[348153705,1736357449710,-500.0,0.00020547,3]
[348153706,1736357449720,-500.0,0.00020547,3]
[348153707,1736357449730,-500.0,0.00020547,3]
[348153708,1736357449739,-500.0,0.00020547,3]
[348153709,1736357449748,-500.0,0.00020547,3]
[348153710,1736357449758,-500.0,0.00020547,3]
[348153711,1736357449767,-3326.1077393,0.00020547,3]
[348153712,1736357449783,-1989.8222607,0.00020547,3]
[348153713,1736357449792,-500.0,0.00020547,3]
[348153714,1736357449802,-500.0,0.00020547,3]
[348153715,1736357449811,-500.0,0.00020547,3]
[348153716,1736357449820,-587.53,0.00020547,3]
[348153717,1736357449829,-500.0,0.00020547,3]
[348153718,1736357449839,-500.0,0.00020547,3]
[348153719,1736357449848,-265.86,0.00020547,3]
[348153720,1736357449858,-500.0,0.00020547,3]
[348153721,1736357449867,-500.0,0.00020547,3]
[348153722,1736357449876,-379.46,0.00020547,3]
[348153723,1736357449885,-500.0,0.00020547,3]
[348153724,1736357449894,-500.0,0.00020547,3]
[348153725,1736357449902,-500.0,0.00020547,3]
[348153726,1736357449911,-248.05,0.00020547,3]
[348153727,1736357449921,-312.28,0.00020547,3]
[348153728,1736357449930,-500.0,0.00020547,3]
[348153729,1736357449940,-500.0,0.00020547,3]
[348153730,1736357449949,-695.95,0.00020547,3]
[348153731,1736357449959,-500.0,0.00020547,3]
[348153732,1736357449968,-500.0,0.00020627,2]
[348153733,1736357449977,-500.0,0.00020627,2]
[348153734,1736357449987,-199.71,0.00020821,3]
[348153735,1736357449996,-537.48495824,0.00020821,3]
[348153736,1736357450005,-580.62,0.00020821,3]
[348153737,1736357450015,-500.0,0.00020821,3]
[348153738,1736357450030,-500.0,0.00020821,3]
[348153739,1736357450040,-500.0,0.00020821,3]
[348153740,1736357450049,-500.0,0.00020821,3]
[348153741,1736357450059,-500.0,0.00020821,3]
[348153742,1736357450068,-500.0,0.00020821,3]
[348153743,1736357450077,-1064.4,0.00020821,3]
[348153744,1736357450087,-500.0,0.00020821,3]
[348153745,1736357450098,-498.8514932,0.00020821,3]
[348153746,1736357450107,-500.0,0.00020821,3]
[348153747,1736357450116,-500.0,0.00020821,3]
[348153748,1736357450126,-500.0,0.00020821,3]
[348153749,1736357450135,-500.0,0.00020821,3]
[348153750,1736357450144,-5315.93,0.00020821,3]
[348153751,1736357450154,-500.0,0.00020821,3]
[348153752,1736357450163,-500.0,0.00020821,3]
[348153753,1736357450174,-240.05,0.00020821,3]
[348153754,1736357450183,-500.0,0.00020821,3]
[348153755,1736357450193,-500.0,0.00020821,3]
[348153756,1736357450202,-500.0,0.00020821,3]
[348153757,1736357450211,-500.0,0.00020821,3]
[348153758,1736357450221,-500.0,0.00020821,3]
[348153759,1736357450231,-500.0,0.00020821,3]
[348153760,1736357450240,-500.0,0.00020821,3]
[348153761,1736357450250,-271.08,0.00020821,3]
[348153762,1736357450259,-695.95,0.00020821,3]
[348153763,1736357450269,-500.0,0.00020821,3]
[348153764,1736357450284,-8850.23,0.00021009,3]
[348153765,1736357450293,-8850.23,0.00021069,3]
[348153766,1736357450303,-154.88735607,0.00021086,2]
[348153767,1736357450313,-580.62,0.00021095,3]
[348153768,1736357450323,-500.0,0.00021095,3]
[348153769,1736357450332,-500.0,0.00021095,3]
[348153770,1736357450342,-500.0,0.00021095,3]
[348153771,1736357450354,-223.02,0.00021095,3]
[348153772,1736357450365,-500.0,0.00021095,3]
[348153773,1736357450374,-500.0,0.00021095,3]
[348153774,1736357450384,-1064.4,0.00021095,3]
[348153775,1736357450394,-500.0,0.00021095,3]
[348153776,1736357450404,-500.0,0.00021095,3]
[348153777,1736357450414,-500.0,0.00021095,3]
[348153778,1736357450423,-500.0,0.00021095,3]
[348153779,1736357450433,-500.0,0.00021095,3]
[348153780,1736357450443,-5315.93,0.00021095,3]
[348153781,1736357450453,-500.0,0.00021095,3]
[348153782,1736357450463,-500.0,0.00021095,3]
[348153783,1736357450472,-500.0,0.00021095,3]
[348153784,1736357450482,-500.0,0.00021095,3]
[348153785,1736357450490,-500.0,0.00021095,3]
[348153786,1736357450500,-500.0,0.00021095,3]
[348153787,1736357450510,-500.0,0.00021095,3]
[348153788,1736357450520,-237.28,0.00021095,3]
[348153789,1736357450535,-500.0,0.00021095,3]
[348153790,1736357450545,-695.95,0.00021095,3]
[348153791,1736357450555,-8850.23,0.00021109,3]
[348153792,1736357450565,-394.0,0.00021125,2]
[348153793,1736357450574,-971.54674228,0.00021175,2]
[348153794,1736357450584,-580.62,0.00021369,3]
[348153795,1736357450594,-500.0,0.00021369,3]
[348153796,1736357450603,-500.0,0.00021369,3]
[348153797,1736357450614,-500.0,0.00021369,3]
[348153798,1736357450623,-514.42,0.00021369,3]
[348153799,1736357450633,-1064.4,0.00021369,3]
[348153800,1736357450642,-500.0,0.00021369,3]
[348153801,1736357450652,-500.0,0.00021369,3]
[348153802,1736357450662,-500.0,0.00021369,3]
[348153803,1736357450671,-500.0,0.00021369,3]
[348153804,1736357450682,-500.0,0.00021369,3]
[348153805,1736357450691,-5315.93,0.00021369,3]
[348153806,1736357450701,-500.0,0.00021369,3]
[348153807,1736357450711,-500.0,0.00021369,3]
[348153808,1736357450720,-500.0,0.00021369,3]
[348153809,1736357450730,-500.0,0.00021369,3]
[348153810,1736357450739,-500.0,0.00021369,3]
[348153811,1736357450752,-500.0,0.00021369,3]
[348153812,1736357450762,-500.0,0.00021369,3]
[348153813,1736357450775,-500.0,0.00021369,3]
[348153814,1736357450785,-695.95,0.00021369,3]
[348153815,1736357450795,-580.62,0.00021643,3]
[348153816,1736357450804,-500.0,0.00021643,3]
[348153817,1736357450814,-189.75418422,0.00021643,3]
[348153818,1736357450824,-1064.4,0.00021643,3]
[348153819,1736357450834,-500.0,0.00021643,3]
[348153820,1736357450843,-385.86,0.00021643,3]
[348153821,1736357450853,-500.0,0.00021643,3]
[348153822,1736357450864,-500.0,0.00021643,3]
[348153823,1736357450874,-500.0,0.00021643,3]
[348153824,1736357450883,-5315.93,0.00021643,3]
[348153825,1736357450892,-606.73,0.00021643,3]
[348153826,1736357450902,-500.0,0.00021643,3]
[348153827,1736357450911,-500.0,0.00021643,3]
[348153828,1736357450920,-500.0,0.00021643,3]
[348153829,1736357450930,-233.06,0.00021643,3]
[348153830,1736357450939,-500.0,0.00021643,3]
[348153831,1736357450949,-500.0,0.00021643,3]
[348153832,1736357450958,-500.0,0.00021643,3]
[348153833,1736357450968,-695.95,0.00021643,3]
[348153834,1736357450977,-162.431711,0.00021661,2]
[348153835,1736357450987,-6872.11451631,0.00021916,3]
[348153836,1736357451000,-1295.73728711,0.00021916,3]
[348153837,1736357451011,-682.37819658,0.00021916,3]
[348153838,1736357451021,-580.62,0.00021917,3]
[348153839,1736357451034,-117.00180292,0.00021917,3]
[348153840,1736357451046,-382.99819708,0.00021917,3]
[348153841,1736357451055,-1063.27430352,0.00021917,3]
[348153842,1736357451120,-1.12569648,0.00021917,3]
[348153843,1736357451131,-500.0,0.00021917,3]
[348153844,1736357451140,-257.30248292,0.00021917,3]
[348153845,1736357451152,-242.69751708,0.00021917,3]
[348153846,1736357451162,-226.71248292,0.00021917,3]
[348153847,1736357451173,-273.28751708,0.00021917,3]
[348153848,1736357451183,-500.0,0.00021917,3]
[348153849,1736357451193,-5315.93,0.00021917,3]
[348153850,1736357451202,-500.0,0.00021917,3]
[348153851,1736357451211,-500.0,0.00021917,3]
[348153852,1736357451221,-500.0,0.00021917,3]
[348153853,1736357451231,-500.0,0.00021917,3]
[348153854,1736357451241,-500.0,0.00021917,3]
[348153855,1736357451251,-621.14,0.00021917,3]
[348153856,1736357451260,-695.95,0.00021917,3]
[348153857,1736357451270,-7284.04,0.00022,2]
[348153858,1736357451284,-10240.38690919,0.00022,2]
[348153859,1736357451294,-20880.78122726,0.00022,4]
[348153860,1736357451303,-151.0,0.00022,2]
[348153861,1736357451312,-630.771,0.0002204,2]
[348153862,1736357451322,-3613.26,0.000221,14]
[348153863,1736357451331,-8959.05,0.000221,14]
[348153864,1736357451341,-580.62,0.00022191,3]
[348153865,1736357451351,-500.0,0.00022191,3]
[348153866,1736357451360,-1064.4,0.00022191,3]